fUSD/lending_fUSD_20240217
["ID","MTS","AMOUNT","RATE_DAILY","PERIOD"]
[314328588,1708185053465,-500.0,0.00055068,120]
[314328589,1708185053474,-500.0,0.00055068,120]
[314328590,1708185053483,-500.0,0.00055068,120]
[314328591,1708185053492,-500.0,0.00055068,120]
[314328592,1708185053501,-500.0,0.00055068,120]
[314328593,1708185053511,-500.0,0.00055068,120]
[314328594,1708185053520,-500.0,0.00055068,120]
[314328595,1708185053529,-500.0,0.00055068,120]
[314328596,1708185053539,-500.0,0.00055068,120]
[314328597,1708185053549,-205.96772206,0.00055068,120]
[314328598,1708185053558,-500.0,0.00055068,120]
[314328599,1708185053567,-500.0,0.00055068,120]
[314328600,1708185053576,-500.0,0.00055068,120]
[314328601,1708185053585,-500.0,0.00055068,120]
[314328602,1708185053594,-500.0,0.00055068,120]
[314328603,1708185053603,-530.98169787,0.00055068,7]
[314328604,1708185053612,-500.0,0.00055068,120]
[314328605,1708185053621,-3127.9,0.00055068,120]
[314328606,1708185053630,-581.04406943,0.00055068,120]
[314328607,1708185053640,-500.0,0.00055068,120]
[314328608,1708185053650,-500.0,0.00055068,120]
[314328609,1708185053659,-500.0,0.00055068,120]
[314328610,1708185053669,-500.0,0.00055068,120]
[314328611,1708185053678,-500.0,0.00055068,120]
[314328612,1708185053688,-500.0,0.00055068,2]
[314328613,1708185053699,-203.29034197,0.00055068,120]
[314328614,1708185053709,-500.0,0.00055068,120]
[314328615,1708185053718,-1157.79,0.00055068,120]
[314328616,1708185053729,-457.82979112,0.00055068,120]
[314328617,1708185053738,-500.0,0.00055068,120]
[314328618,1708185053748,-500.0,0.00055068,120]
[314328619,1708185053757,-500.0,0.00055068,120]
[314328620,1708185053766,-560.74,0.00055068,120]
[314328621,1708185053776,-500.0,0.00055068,120]
[314328622,1708185053785,-500.0,0.00055068,120]
[314328623,1708185053795,-500.0,0.00055068,120]
[314328624,1708185053805,-164.62867702,0.00055068,120]
[314328625,1708185053814,-500.0,0.00055068,120]
[314328626,1708185053823,-545.57938761,0.00055068,120]
[314328627,1708185053832,-500.0,0.00055068,120]
[314328628,1708185053841,-500.0,0.00055068,120]
[314328629,1708185053851,-500.0,0.00055068,120]
[314328630,1708185053861,-500.0,0.00055068,120]
[314328631,1708185053871,-500.0,0.00055068,120]
[314328632,1708185053880,-500.0,0.00055068,120]
[314328633,1708185053889,-500.0,0.00055068,120]
[314328634,1708185053899,-500.0,0.00055068,120]
[314328635,1708185053910,-500.0,0.00055068,120]
[314328636,1708185053920,-500.0,0.00055068,120]
[314328637,1708185053929,-500.0,0.00055068,120]
[314328638,1708185053938,-788.44,0.00055068,120]
[314328639,1708185053951,-3559.36,0.00055068,120]
[314328640,1708185053960,-455.30553173,0.00055068,120]
[314328641,1708185053969,-500.0,0.00055068,120]
[314328642,1708185053979,-500.0,0.00055068,14]
[314328643,1708185053988,-500.0,0.00055068,120]
[314328644,1708185053997,-500.0,0.00055068,120]
[314328645,1708185054007,-500.0,0.00055068,120]
[314328646,1708185054016,-500.0,0.00055068,120]
[314328647,1708185054026,-500.0,0.00055068,120]
[314328648,1708185054035,-500.0,0.00055068,120]
[314328649,1708185054045,-500.0,0.00055068,120]
[314328650,1708185054054,-523.40949022,0.00055068,120]
[314328651,1708185054064,-500.0,0.00055068,120]
[314328652,1708185054073,-500.0,0.00055068,120]
[314328653,1708185054083,-500.0,0.00055068,120]
[314328654,1708185054092,-537.42621033,0.00055068,120]
[314328655,1708185054102,-500.0,0.00055068,120]
[314328656,1708185054111,-500.0,0.00055068,120]
[314328657,1708185054120,-500.0,0.00055068,120]
[314328658,1708185054130,-500.0,0.00055068,120]
[314328659,1708185054139,-543.52,0.00055068,120]
[314328660,1708185054149,-500.0,0.00055068,120]
[314328661,1708185054158,-500.0,0.00055068,120]
[314328662,1708185054168,-500.0,0.00055068,120]
[314328663,1708185054177,-500.0,0.00055068,120]
[314328664,1708185054187,-600.56,0.00055068,120]
[314328665,1708185054196,-500.0,0.00055068,120]
[314328666,1708185054206,-577.62913496,0.00055068,120]
[314328667,1708185054215,-500.0,0.00055068,120]
[314328668,1708185054225,-500.0,0.00055068,120]
[314328669,1708185054235,-500.0,0.00055068,120]
[314328670,1708185054245,-500.0,0.00055068,120]
[314328671,1708185054255,-500.0,0.00055068,120]
[314328672,1708185054265,-500.0,0.00055068,120]
[314328673,1708185054275,-500.0,0.00055068,120]
[314328674,1708185054284,-500.0,0.00055068,120]
[314328675,1708185054295,-500.0,0.00055068,120]
[314328676,1708185054304,-622.12543394,0.00055068,120]
[314328677,1708185054313,-500.0,0.00055068,120]
[314328678,1708185054323,-500.0,0.00055068,120]
[314328679,1708185054332,-523.02,0.00055068,120]
[314328680,1708185054342,-649.16,0.00055068,120]
[314328681,1708185054351,-567.11314946,0.00055068,120]
[314328682,1708185054360,-500.0,0.00055068,120]
[314328683,1708185054370,-1738.5,0.00055068,120]
[314328684,1708185054379,-500.0,0.00055068,120]
[314328685,1708185054389,-1023.65,0.00055068,120]
[314328686,1708185054398,-609.9,0.00055068,120]
[314328687,1708185054409,-500.0,0.00055068,120]
[314328688,1708185054418,-603.73881311,0.00055068,120]
[314328689,1708185054427,-500.0,0.00055068,120]
[314328690,1708185054436,-500.0,0.00055068,120]
[314328691,1708185054446,-500.0,0.00055068,120]
[314328692,1708185054455,-500.0,0.00055068,120]
[314328693,1708185054464,-589.67267449,0.00055068,120]
[314328694,1708185054474,-500.0,0.00055068,120]
[314328695,1708185054483,-500.0,0.00055068,120]
[314328696,1708185054492,-500.0,0.00055068,120]
[314328697,1708185054502,-500.0,0.00055068,120]
[314328698,1708185054511,-1790.0,0.00055068,120]
[314328699,1708185054521,-500.0,0.00055068,120]
[314328700,1708185054530,-500.0,0.00055068,120]
[314328701,1708185054539,-540.50670351,0.00055068,120]
[314328702,1708185054549,-205.91936027,0.00055068,120]
[314328703,1708185054558,-500.0,0.00055068,120]
[314328704,1708185054567,-661.2,0.00055068,120]
[314328705,1708185054577,-500.0,0.00055068,120]
[314328706,1708185054586,-500.0,0.00055068,120]
[314328707,1708185054595,-500.0,0.00055068,120]
[314328708,1708185054605,-500.0,0.00055068,120]
[314328709,1708185054614,-14381.06,0.00055068,120]
[314328710,1708185054623,-500.0,0.00055068,120]
[314328711,1708185054632,-500.0,0.00055068,120]
[314328712,1708185054642,-500.0,0.00055068,120]
[314328713,1708185054651,-500.0,0.00055068,120]
[314328714,1708185054661,-500.0,0.00055068,120]
[314328715,1708185054670,-500.0,0.00055068,120]
[314328716,1708185054679,-500.0,0.00055068,120]
[314328717,1708185054689,-500.0,0.00055068,2]
[314328718,1708185054699,-500.0,0.00055068,120]
[314328719,1708185054711,-500.0,0.00055068,120]
[314328720,1708185054721,-5313.91,0.00055068,120]
[314328721,1708185054730,-500.0,0.00055068,120]
[314328722,1708185054740,-174.55429698,0.00055068,120]
[314328723,1708185054750,-500.0,0.00055068,120]
[314328724,1708185054760,-500.0,0.00055068,120]
[314328725,1708185054769,-500.0,0.00055068,120]
[314328726,1708185054779,-205.0,0.00055109,35]
[314328727,1708185054789,-302.0,0.00055113,4]
[314328728,1708185054798,-1000.0,0.00055125,120]
[314328729,1708185054808,-160.0,0.00055288,120]
[314328730,1708185054817,-2000.0,0.000553,90]
[314328731,1708185054828,-159.879999,0.00055301,7]
[314328732,1708185054837,-500.0,0.00055342,2]
[314328733,1708185054847,-500.0,0.00055342,120]
[314328734,1708185054856,-631.44,0.00055342,2]
[314328735,1708185054866,-512.59005959,0.00055342,120]
[314328736,1708185054876,-500.0,0.00055342,120]
[314328737,1708185054885,-210.64953305,0.00055342,120]
[314328738,1708185054895,-500.0,0.00055342,120]
[314328739,1708185054905,-500.0,0.00055342,120]
[314328740,1708185054914,-500.0,0.00055342,120]
[314328741,1708185054923,-500.0,0.00055342,120]
[314328742,1708185054933,-500.0,0.00055342,120]
[314328743,1708185054942,-500.0,0.00055342,120]
[314328744,1708185054952,-449.22699482,0.00055342,120]
[314328745,1708185054961,-613.2552488,0.00055342,120]
[314328746,1708185054971,-500.0,0.00055342,120]
[314328747,1708185054980,-500.0,0.00055342,120]
[314328748,1708185054989,-526.17916288,0.00055342,120]
[314328749,1708185054999,-500.0,0.00055342,120]
[314328750,1708185055008,-520.87572639,0.00055342,2]
[314328751,1708185055018,-500.0,0.00055342,120]
[314328752,1708185055027,-500.0,0.00055342,120]
[314328753,1708185055037,-500.0,0.00055342,120]
[314328754,1708185055049,-500.0,0.00055342,120]
[314328755,1708185055058,-443.99661688,0.00055342,2]
[314328756,1708185055068,-500.0,0.00055342,120]
[314328757,1708185055077,-413.60222943,0.00055342,120]
[314328758,1708185055087,-500.0,0.00055342,120]
[314328759,1708185055097,-500.0,0.00055342,120]
[314328760,1708185055106,-500.0,0.00055342,120]
[314328761,1708185055116,-500.0,0.00055342,120]
[314328762,1708185055125,-712.65,0.00055342,7]
[314328763,1708185055135,-500.0,0.00055342,120]
[314328764,1708185055144,-500.0,0.00055342,120]
[314328765,1708185055154,-500.0,0.00055342,120]
[314328766,1708185055163,-500.0,0.00055342,2]
[314328767,1708185055173,-500.0,0.00055342,120]
[314328768,1708185055183,-163.50291979,0.00055342,120]
[314328769,1708185055192,-315.85110424,0.00055342,120]
[314328770,1708185055202,-500.0,0.00055342,120]
[314328771,1708185055211,-500.0,0.00055342,120]
[314328772,1708185055221,-500.0,0.00055342,120]
[314328773,1708185055230,-500.0,0.00055342,120]
[314328774,1708185055239,-500.0,0.00055342,120]
[314328775,1708185055249,-503.93329782,0.00055342,120]
[314328776,1708185055259,-500.0,0.00055342,120]
[314328777,1708185055268,-648.02242233,0.00055342,120]
[314328778,1708185055278,-500.0,0.00055342,120]
[314328779,1708185055287,-176.72431962,0.00055342,120]
[314328780,1708185055297,-500.0,0.00055342,120]
[314328781,1708185055306,-500.0,0.00055342,120]
[314328782,1708185055315,-500.0,0.00055342,120]
[314328783,1708185055325,-500.0,0.00055342,120]
[314328784,1708185055334,-500.0,0.00055342,120]
[314328785,1708185055344,-500.0,0.00055342,120]
[314328786,1708185055353,-500.0,0.00055342,120]
[314328787,1708185055362,-500.0,0.00055342,120]
[314328788,1708185055372,-630.36718076,0.00055342,120]
[314328789,1708185055381,-500.0,0.00055342,120]
[314328790,1708185055391,-500.0,0.00055342,120]
[314328791,1708185055400,-500.0,0.00055342,120]
[314328792,1708185055410,-1000.0,0.00055342,7]
[314328793,1708185055419,-500.0,0.00055342,120]
[314328794,1708185055429,-500.0,0.00055342,120]
[314328795,1708185055438,-500.0,0.00055342,120]
[314328796,1708185055448,-500.0,0.00055342,120]
[314328797,1708185055457,-500.0,0.00055342,120]
[314328798,1708185055466,-500.0,0.00055342,120]
[314328799,1708185055475,-500.0,0.00055342,120]
[314328800,1708185055485,-500.0,0.00055342,120]
[314328801,1708185055494,-500.0,0.00055342,120]
[314328802,1708185055503,-500.0,0.00055342,120]
[314328803,1708185055512,-500.0,0.00055342,120]
[314328804,1708185055522,-500.0,0.00055342,120]
[314328805,1708185055532,-500.0,0.00055342,120]
[314328806,1708185055541,-150.0,0.00055342,120]
[314328807,1708185055551,-310.49713898,0.00055342,120]
[314328808,1708185055899,-2763.900869,0.000528,2]
[314328809,1708185055910,-500.0,0.00054794,120]
[314328810,1708185055919,-284.89504953,0.00055342,120]
[314328811,1708185055929,-500.0,0.00055342,30]
[314328812,1708185055938,-500.0,0.00055342,120]
[314328813,1708185055947,-500.0,0.00055342,2]
[314328814,1708185055956,-335.10380059,0.00055342,120]
[314328815,1708185055966,-500.0,0.00055342,120]
[314328816,1708185055975,-500.0,0.00055342,2]
[314328817,1708185055985,-500.0,0.00055342,120]
[314328818,1708185055994,-1000.0,0.00055342,120]
[314328819,1708185056003,-219.39315036,0.00055342,120]
[314328820,1708185056012,-500.0,0.00055342,120]
[314328821,1708185056022,-500.0,0.00055342,120]
[314328822,1708185056031,-500.0,0.00055342,120]
[314328823,1708185056040,-376.72688887,0.00055342,120]
[314328824,1708185056050,-500.0,0.00055342,120]
[314328825,1708185056059,-500.0,0.00055342,120]
[314328826,1708185056069,-616.91823692,0.00055342,120]
[314328827,1708185056079,-500.0,0.00055342,120]
[314328828,1708185056089,-500.0,0.00055342,120]
[314328829,1708185056098,-500.0,0.00055342,120]
[314328830,1708185056107,-500.0,0.00055342,120]
[314328831,1708185056117,-500.0,0.00055342,120]
[314328832,1708185056127,-500.0,0.00055342,120]
[314328833,1708185056137,-213.88,0.00055342,120]
[314328834,1708185056146,-500.0,0.00055342,120]
[314328835,1708185056156,-1250.97,0.00055342,120]
[314328836,1708185056165,-500.0,0.00055342,120]
[314328837,1708185056175,-526.79084701,0.00055342,120]
[314328838,1708185056185,-500.0,0.00055342,120]
[314328839,1708185056194,-500.0,0.00055342,2]
[314328840,1708185056204,-500.0,0.00055342,120]
[314328841,1708185056213,-500.0,0.00055342,120]
[314328842,1708185056223,-523.89781194,0.00055342,120]
[314328843,1708185056233,-500.0,0.00055342,120]
[314328844,1708185056242,-500.0,0.00055342,120]
[314328845,1708185056252,-500.0,0.00055342,120]
[314328846,1708185056261,-632.43,0.00055342,120]
[314328847,1708185056272,-598.79054797,0.00055342,120]
[314328848,1708185056282,-500.0,0.00055342,120]
[314328849,1708185056292,-500.0,0.00055342,120]
[314328850,1708185056301,-500.0,0.00055342,120]
[314328851,1708185056311,-500.0,0.00055342,120]
[314328852,1708185056320,-500.0,0.00055342,120]
[314328853,1708185056330,-486.99638764,0.00055342,120]
[314328854,1708185056339,-3456.26,0.00055342,120]
[314328855,1708185056349,-155.58994944,0.00055342,120]
[314328856,1708185056358,-500.0,0.00055342,120]
[314328857,1708185056367,-536.86482471,0.00055342,120]
[314328858,1708185056377,-3914.34,0.00055342,120]
[314328859,1708185056386,-500.0,0.00055342,120]
[314328860,1708185056395,-585.33043454,0.00055342,120]
[314328861,1708185056405,-500.0,0.00055342,120]
[314328862,1708185056414,-500.0,0.00055342,120]
[314328863,1708185056424,-500.0,0.00055342,120]
[314328864,1708185056433,-500.0,0.00055342,120]
[314328865,1708185056442,-500.0,0.00055342,120]
[314328866,1708185056452,-380.25994813,0.00055342,120]
[314328867,1708185056461,-500.0,0.00055342,120]
[314328868,1708185056470,-425.79910263,0.00055342,120]
[314328869,1708185056480,-500.0,0.00055342,120]
[314328870,1708185056490,-500.0,0.00055342,120]
[314328871,1708185056499,-500.0,0.00055342,120]
[314328872,1708185056509,-500.0,0.00055342,120]
[314328873,1708185056519,-500.0,0.00055342,120]
[314328874,1708185056528,-500.0,0.00055342,120]
[314328875,1708185056537,-500.0,0.00055342,120]
[314328876,1708185056547,-646.15,0.00055342,120]
[314328877,1708185056556,-500.0,0.00055342,120]
[314328878,1708185056566,-500.0,0.00055342,120]
[314328879,1708185056576,-500.0,0.00055342,120]
[314328880,1708185056585,-500.0,0.00055342,120]
[314328881,1708185056595,-500.0,0.00055342,120]
[314328882,1708185056604,-500.0,0.00055342,120]
[314328883,1708185056614,-500.0,0.00055342,120]
[314328884,1708185056623,-500.0,0.00055342,120]
[314328885,1708185056633,-500.0,0.00055342,120]
[314328886,1708185056643,-500.0,0.00055342,120]
[314328887,1708185056652,-698.16,0.00055342,120]
[314328888,1708185056662,-500.0,0.00055342,120]
[314328889,1708185056672,-524.89362049,0.00055342,120]
[314328890,1708185056681,-500.0,0.00055342,120]
[314328891,1708185056691,-500.0,0.00055342,120]
[314328892,1708185056702,-500.0,0.00055342,120]
[314328893,1708185056714,-500.0,0.00055342,120]
[314328894,1708185056724,-500.0,0.00055342,120]
[314328895,1708185056733,-300.0,0.00055342,120]
[314328896,1708185056742,-500.0,0.00055342,120]
[314328897,1708185056752,-500.0,0.00055342,120]
[314328898,1708185056761,-500.0,0.00055342,120]
[314328899,1708185056770,-500.0,0.00055342,120]
[314328900,1708185056780,-500.0,0.00055342,120]
[314328901,1708185056790,-500.0,0.00055342,120]
[314328902,1708185056799,-500.0,0.00055342,120]
[314328903,1708185056809,-500.0,0.00055342,7]
[314328904,1708185056818,-500.0,0.00055342,120]
[314328905,1708185056827,-500.0,0.00055342,120]
[314328906,1708185056836,-500.0,0.00055342,120]
[314328907,1708185056845,-500.0,0.00055342,120]
[314328908,1708185056854,-500.0,0.00055342,120]
[314328909,1708185056864,-500.0,0.00055342,120]
[314328910,1708185056873,-500.0,0.00055342,120]
[314328911,1708185056883,-500.0,0.00055342,120]
[314328912,1708185056892,-500.0,0.00055342,120]
[314328913,1708185056902,-500.0,0.00055342,120]
[314328914,1708185056912,-500.0,0.00055342,120]
[314328915,1708185056922,-500.0,0.00055342,120]
[314328916,1708185056932,-500.0,0.00055342,120]
[314328917,1708185056942,-3127.9,0.00055342,120]
[314328918,1708185056951,-500.0,0.00055342,120]
[314328919,1708185056961,-500.0,0.00055342,120]
[314328920,1708185056970,-500.0,0.00055342,120]
[314328921,1708185056979,-500.0,0.00055342,120]
[314328922,1708185056989,-500.0,0.00055342,120]
[314328923,1708185056998,-500.0,0.00055342,2]
[314328924,1708185057008,-500.0,0.00055342,120]
[314328925,1708185057018,-1157.79,0.00055342,120]
[314328926,1708185057027,-500.0,0.00055342,120]
[314328927,1708185057037,-500.0,0.00055342,120]
[314328928,1708185057046,-500.0,0.00055342,120]
[314328929,1708185057057,-560.74,0.00055342,120]
[314328930,1708185057066,-500.0,0.00055342,120]
[314328931,1708185057076,-500.0,0.00055342,120]
[314328932,1708185057085,-500.0,0.00055342,120]
[314328933,1708185057095,-500.0,0.00055342,120]
[314328934,1708185057104,-500.0,0.00055342,120]
[314328935,1708185057114,-500.0,0.00055342,120]
[314328936,1708185057124,-500.0,0.00055342,120]
[314328937,1708185057133,-593.87986641,0.00055342,120]
[314328938,1708185057143,-500.0,0.00055342,120]
[314328939,1708185057152,-500.0,0.00055342,120]
[314328940,1708185057162,-500.0,0.00055342,120]
[314328941,1708185057172,-500.0,0.00055342,120]
[314328942,1708185057182,-788.44,0.00055342,120]
[314328943,1708185057193,-3559.36,0.00055342,120]
[314328944,1708185057202,-500.0,0.00055342,120]
[314328945,1708185057214,-500.0,0.00055342,14]
[314328946,1708185057225,-587.47010592,0.00055342,120]
[314328947,1708185057234,-441.93247231,0.00055342,120]
[314328948,1708185057245,-500.0,0.00055342,120]
[314328949,1708185057254,-500.0,0.00055342,120]
[314328950,1708185057264,-500.0,0.00055342,120]
[314328951,1708185057274,-500.0,0.00055342,120]
[314328952,1708185057283,-500.0,0.00055342,120]
[314328953,1708185057292,-500.0,0.00055342,120]
[314328954,1708185057301,-500.0,0.00055342,120]
[314328955,1708185057310,-500.0,0.00055342,120]
[314328956,1708185057319,-346.19466738,0.00055342,120]
[314328957,1708185057329,-500.0,0.00055342,120]
[314328958,1708185057339,-500.0,0.00055342,120]
[314328959,1708185057348,-543.52,0.00055342,120]
[314328960,1708185057357,-500.0,0.00055342,120]
[314328961,1708185057366,-500.0,0.00055342,120]
[314328962,1708185057375,-514.20951903,0.00055342,120]
[314328963,1708185057384,-500.0,0.00055342,120]
[314328964,1708185057394,-500.0,0.00055342,120]
[314328965,1708185057403,-600.56,0.00055342,120]
[314328966,1708185057411,-500.0,0.00055342,120]
[314328967,1708185057421,-534.09409967,0.00055342,120]
[314328968,1708185057430,-500.0,0.00055342,120]
[314328969,1708185057439,-500.0,0.00055342,120]
[314328970,1708185057449,-500.0,0.00055342,120]
[314328971,1708185057458,-500.0,0.00055342,120]
[314328972,1708185057467,-500.0,0.00055342,120]
[314328973,1708185057477,-500.0,0.00055342,120]
[314328974,1708185057486,-500.0,0.00055342,120]
[314328975,1708185057495,-477.0009455,0.00055342,120]
[314328976,1708185057504,-500.0,0.00055342,120]
[314328977,1708185057513,-500.0,0.00055342,120]
[314328978,1708185057522,-523.02,0.00055342,120]
[314328979,1708185057532,-649.16,0.00055342,120]
[314328980,1708185057541,-500.0,0.00055342,120]
[314328981,1708185057551,-1738.5,0.00055342,120]
[314328982,1708185057560,-500.0,0.00055342,120]
[314328983,1708185057570,-1023.65,0.00055342,120]
[314328984,1708185057580,-609.9,0.00055342,120]
[314328985,1708185057589,-502.45080842,0.00055342,120]
[314328986,1708185057599,-500.0,0.00055342,120]
[314328987,1708185057608,-500.0,0.00055342,120]
[314328988,1708185057617,-500.0,0.00055342,120]
[314328989,1708185057627,-500.0,0.00055342,120]
[314328990,1708185057636,-500.0,0.00055342,120]
[314328991,1708185057646,-500.0,0.00055342,120]
[314328992,1708185057655,-500.0,0.00055342,120]
[314328993,1708185057665,-500.0,0.00055342,120]
[314328994,1708185057674,-1790.0,0.00055342,120]
[314328995,1708185057683,-500.0,0.00055342,120]
[314328996,1708185057693,-500.0,0.00055342,120]
[314328997,1708185057704,-500.0,0.00055342,120]
[314328998,1708185057714,-661.2,0.00055342,120]
[314328999,1708185057723,-500.0,0.00055342,120]
[314329000,1708185057733,-500.0,0.00055342,120]
[314329001,1708185057742,-579.65110196,0.00055342,120]
[314329002,1708185057752,-4818.89911627,0.00055342,120]
[314329003,1708185057954,-462.6292584,0.00048421,2]
[314329004,1708185057963,-4422.241391,0.00050684,30]
[314329005,1708185057973,-57.40697943,0.00051506,30]
[314329006,1708185058000,-3602.69757374,0.00051506,30]
[314329007,1708185058016,-150.0,0.000418,2]
[314329008,1708185058068,-762.13683783,0.00051506,30]
[314329009,1708185058078,-1105.560347,0.00052054,30]
[314329010,1708185058087,-3869.461217,0.000545,2]
[314329011,1708185058096,-1798.9544698,0.00054668,33]
[314329012,1708185058108,-17329.79607682,0.00054668,33]
[314329013,1708185058141,-37984.79235547,0.00054668,33]
[314329014,1708185058152,-1734.65244835,0.00054668,33]
[314329015,1708185265106,215.82244978,0.000137,2]
[314329016,1708185265911,308.33648603,0.00022999,10]
[314329017,1708185270628,16089.2221101,0.00022999,5]
[314329018,1708185300552,308.33648603,0.00022999,10]
[314329019,1708185487734,-1444.0,0.00022589,2]
[314329020,1708185487754,-735.5392361,0.0002259,2]
[314329021,1708185487777,-150.0,0.00022769,2]
[314329022,1708185487803,-1159.4607639,0.0002277,2]
[314329023,1708185509526,-1300.0,0.0002277,2]
[314329024,1708185527407,-600.0,0.0002277,2]
[314329025,1708185671836,170.64,0.00028005,120]
[314329026,1708185672059,170.64,0.00032006,120]
[314329027,1708185894276,15377.0,0.00022317,2]
[314329028,1708186131274,468.89052515,0.00022317,2]
[314329029,1708186151248,468.89052515,0.00022317,2]
[314329030,1708186169275,468.89052515,0.00022317,2]
[314329031,1708186201524,468.89052515,0.00022317,2]
[314329032,1708186219522,468.89052515,0.00022317,2]
[314329040,1708186232024,-23900.0,0.00022453,2]
[314329041,1708186232034,-259.23788975,0.000225,2]
[314329042,1708186232044,-500.0,0.000225,2]
[314329043,1708186232054,-582.03,0.000225,2]
[314329044,1708186232067,-158.53,0.000225,2]
[314329045,1708186232076,-1144.23,0.000225,2]
[314329046,1708186232086,-150.01,0.00022546,2]
[314329047,1708186232096,-207.6,0.00022551,2]
[314329048,1708186232105,-183.0,0.00022799,2]
[314329049,1708186232115,-150.0,0.00022799,2]
[314329050,1708186232124,-150.0,0.00022799,2]
[314329051,1708186232133,-643.2955,0.000228,2]
[314329052,1708186232144,-158.73548123,0.000228,2]
[314329053,1708186232153,-2984.8582,0.000228,2]
[314329054,1708186232162,-158.73548121,0.00022847,2]
[314329055,1708186232172,-158.73548121,0.00022894,2]
[314329056,1708186232182,-1000.0,0.00022899,2]
[314329057,1708186232191,-1413.1312,0.000229,2]
[314329058,1708186232200,-4684.0605,0.000229,2]
[314329059,1708186232209,-45763.0783,0.000229,2]
[314329060,1708186232219,-3478.9092,0.000229,2]
[314329061,1708186232228,-354.3976,0.000229,2]
[314329062,1708186232238,-13466.7217,0.000229,2]
[314329063,1708186232247,-1847.6679355,0.000229,2]
[314329064,1708186232257,-1000.0,0.000229,2]
[314329065,1708186232267,-174.47226717,0.000229,2]
[314329066,1708186232276,-1455.5141042,0.000229,2]
[314329067,1708186232285,-364.51641606,0.000229,2]
[314329068,1708186232295,-2149.02439132,0.000229,2]
[314329069,1708186232304,-158.73548121,0.00022941,2]
[314329070,1708186232313,-883.0472687,0.00022941,2]
[314329071,1708186232323,-1728.03837324,0.00022941,2]
[314329072,1708186232332,-156.98721174,0.00022941,2]
[314329073,1708186232342,-1151.61462991,0.00022941,2]
[314329074,1708186232351,-1583.84722243,0.00022941,2]
[314329075,1708186232364,-327.54644697,0.00022941,2]
[314329078,1708186232384,-24.80572222,0.00022941,2]
[314329080,1708186232394,-253.29115961,0.0002299,2]
[314329081,1708186232406,-1733.38884039,0.0002299,2]
[314329082,1708186232419,-218.63280078,0.0002299,2]
[314329084,1708186232429,-286.22533176,0.00022998,2]
[314329086,1708186232438,-499.99,0.00022998,2]
[314329088,1708186232448,-1426.86331979,0.00023,2]
[314329090,1708186232460,-30697.74626724,0.00023,2]
[314329092,1708186232472,-269.59121782,0.00023,2]
[314329095,1708186232485,-1137.75498811,0.00023,2]
[314329097,1708186232496,-17052.49136254,0.00023,2]
[314329099,1708186232508,-1569.15356365,0.00023,2]
[314329128,1708186238116,-137700.0,0.00023,2]
[314329129,1708186238170,-745.86173646,0.00023,2]
[314329130,1708186238182,-741.27723955,0.00023,2]
[314329131,1708186238194,-420.8888349,0.00023,2]
[314329132,1708186238205,-313.89851893,0.00023,2]
[314329133,1708186238217,-26718.1352553,0.00023,2]
[314329134,1708186238228,-1985.22331777,0.00023,2]